bitfinex/quotes_BTCUSD_20241216
["timestamp","ask_amount","ask_price","bid_price","bid_amount"]
[1734362632509,0.0368307,106210.0,106200.0,0.76305389]
[1734362632733,0.0368307,106210.0,106200.0,0.65234856]
[1734362632925,0.0368307,106210.0,106200.0,0.81507219]
[1734362633155,0.0368307,106210.0,106200.0,0.38682984]
[1734362633433,0.0368307,106210.0,106200.0,0.2240632]
[1734362633644,0.1615307,106210.0,106190.0,0.10198822]
[1734362634274,0.1615307,106210.0,106190.0,0.11053091]
[1734362634477,0.2558214,106210.0,106190.0,0.11053091]
[1734362634681,0.2558214,106210.0,106190.0,0.02914759]
[1734362635092,0.1741907,106200.0,106190.0,0.02914759]
[1734362635297,0.0799,106190.0,106170.0,0.2412199]
[1734362635508,0.0489,106180.0,106170.0,0.11914492]
[1734362635711,0.1431907,106180.0,106170.0,0.0001726]
[1734362635917,0.23379603,106180.0,106170.0,0.0001726]
[1734362636325,0.28379603,106180.0,106170.0,0.0001726]
[1734362636527,0.23379603,106180.0,106170.0,0.0001726]
[1734362637126,0.1288,106180.0,106170.0,0.0001726]
[1734362637249,0.0799,106180.0,106170.0,0.02089389]
[1734362637453,0.0462,106200.0,106180.0,0.15]
[1734362637665,0.0368307,106210.0,106200.0,0.15]
[1734362637881,0.0368307,106210.0,106200.0,0.64153129]
[1734362638883,0.1311214,106210.0,106200.0,0.64153129]
[1734362639646,0.1311214,106210.0,106200.0,0.62081]
[1734362640504,0.2107214,106210.0,106200.0,0.62081]
[1734362642165,0.27142673,106210.0,106200.0,0.62081]
[1734362642368,0.2107214,106210.0,106200.0,0.47081]
[1734362642575,0.2586214,106210.0,106200.0,0.21461]
[1734362642782,0.1311214,106210.0,106200.0,0.08671]
[1734362642992,0.1541214,106210.0,106200.0,0.08671]
[1734362643202,0.06070533,106180.0,106170.0,0.0001726]
[1734362643405,0.15499603,106180.0,106170.0,0.0001726]
[1734362645664,0.0942907,106180.0,106170.0,0.0001726]
[1734362645874,0.10499603,106180.0,106170.0,0.0001726]
[1734362646079,0.15499603,106180.0,106170.0,0.0001726]
[1734362646278,0.10499603,106180.0,106170.0,0.0001726]
[1734362646550,0.15499603,106180.0,106170.0,0.0001726]
[1734362649043,0.05,106200.0,106170.0,0.0001726]
[1734362649245,0.01070533,106190.0,106170.0,0.02570381]
[1734362649445,0.0942907,106180.0,106170.0,0.02570381]
[1734362651263,0.0942907,106180.0,106170.0,0.0001726]
[1734362651708,0.05,106160.0,106150.0,0.0001726]
[1734362651932,0.0942907,106160.0,106150.0,0.0001726]
[1734362652139,0.1442907,106160.0,106150.0,0.0001726]
[1734362652352,0.10499603,106160.0,106150.0,0.0001726]
[1734362652555,0.06070533,106180.0,106150.0,0.0001726]
[1734362652757,0.15499603,106170.0,106150.0,0.0001726]
[1734362653206,0.05,106160.0,106150.0,0.0001726]
[1734362653420,0.10499603,106160.0,106150.0,0.0001726]
[1734362654430,0.0942907,106160.0,106150.0,0.0001726]
[1734362655497,0.0942907,106160.0,106140.0,0.0001726]
[1734362655738,0.06070533,106130.0,106100.0,0.34741619]
[1734362655999,0.1442907,106120.0,106100.0,0.14930361]
[1734362656264,0.05,106110.0,106100.0,0.03497011]
[1734362656524,0.1442907,106110.0,106100.0,0.03497011]
[1734362656771,0.15499603,106110.0,106100.0,0.01354749]
[1734362656990,0.1442907,106110.0,106100.0,0.00073023]
[1734362657209,0.10871977,106110.0,106100.0,0.00073023]
[1734362657422,0.0942907,106110.0,106090.0,0.0001724]
[1734362657634,0.10499603,106100.0,106090.0,0.0001724]
[1734362657842,0.0942907,106100.0,106090.0,0.0001724]
[1734362658069,0.1,106080.0,106040.0,0.10044219]
[1734362658328,0.05,106060.0,106030.0,0.02491479]
[1734362658533,0.05,106060.0,106030.0,0.0001726]
[1734362658534,0.1,106060.0,106030.0,0.0001726]
[1734362658741,0.1442907,106050.0,106030.0,0.0001726]
[1734362658955,0.05,106080.0,106030.0,0.09523379]
[1734362659168,0.0942907,106070.0,106030.0,0.09523379]
[1734362659432,0.1942907,106070.0,106040.0,0.02553121]
[1734362659653,0.1942907,106070.0,106040.0,0.000173]
[1734362659862,0.05,106060.0,106040.0,0.000173]
[1734362660077,0.05,106070.0,106040.0,0.000173]
[1734362660295,0.0942907,106070.0,106040.0,0.000173]
[1734362660516,0.1442907,106070.0,106040.0,0.000173]
[1734362660758,0.0942907,106070.0,106040.0,0.000173]
[1734362660990,0.1442907,106060.0,106040.0,0.000173]
[1734362661229,0.0942907,106060.0,106040.0,0.000173]
[1734362661447,0.0942907,106050.0,106040.0,0.000173]
[1734362662620,0.05,106030.0,106000.0,0.2258726]
[1734362662857,0.05,106050.0,106000.0,0.33329153]
[1734362663109,0.0942907,106040.0,106000.0,0.33329153]
[1734362663376,0.0942907,106040.0,106000.0,0.34838682]
[1734362663580,0.1442907,106040.0,106000.0,0.25409612]
[1734362663997,0.1442907,106040.0,106000.0,0.25426306]
[1734362664202,0.05,106030.0,106000.0,0.25426306]
[1734362664409,0.0942907,106020.0,106000.0,0.25426306]
[1734362665042,0.09427393,106020.0,106000.0,0.25426306]
[1734362666017,0.0942907,106020.0,106000.0,0.25426306]
[1734362666265,0.0942907,106020.0,106000.0,0.01346777]
[1734362666266,0.0942907,106010.0,106000.0,0.01346777]
[1734362666981,0.1,106030.0,106000.0,0.01346777]
[1734362667226,0.0942907,106020.0,106000.0,0.01346777]
[1734362667501,0.0942907,106020.0,106000.0,0.16346777]
[1734362667757,0.1442907,106020.0,106000.0,0.16346777]
[1734362668269,0.1442907,106020.0,106000.0,0.01346777]
[1734362668972,0.0942907,106020.0,106000.0,0.01346777]
[1734362669218,0.0942907,106020.0,106000.0,0.16441107]
[1734362669470,0.05,106050.0,106000.0,0.16441107]
[1734362669725,0.0942907,106040.0,106010.0,0.0757]
[1734362669973,0.0942907,106040.0,106010.0,0.2257]
[1734362670699,0.0942907,106040.0,106020.0,0.00094311]
[1734362670921,0.05,106050.0,106020.0,0.19644311]
[1734362671131,0.0942907,106050.0,106020.0,0.19644311]
[1734362671796,0.0942907,106050.0,106020.0,0.19644302]
[1734362672007,0.0942907,106040.0,106020.0,0.1955]
[1734362672225,0.0942907,106040.0,106020.0,0.19644302]
[1734362672442,0.05,106070.0,106020.0,0.19644302]
[1734362672659,0.1442907,106060.0,106030.0,0.2299]
[1734362673293,0.0942907,106060.0,106030.0,0.2299]
[1734362673946,8.65e-05,106110.0,106060.0,0.15]
[1734362674183,0.0942907,106100.0,106060.0,0.15094272]
[1734362674406,0.0942907,106100.0,106080.0,0.15]
[1734362674631,0.1442907,106100.0,106080.0,0.15]
[1734362675277,0.14484606,106100.0,106080.0,0.15]
[1734362675484,0.09484606,106100.0,106080.0,0.15]
[1734362676137,0.00055536,106100.0,106080.0,0.0009426]
[1734362676360,0.00055536,106100.0,106080.0,0.66954251]
[1734362676577,0.00055536,106100.0,106080.0,0.6686]
[1734362676789,0.00055536,106100.0,106090.0,0.23104244]
[1734362676996,0.00055536,106100.0,106090.0,0.7014]
[1734362678361,0.00055536,106100.0,106090.0,0.7956907]
[1734362678577,0.05,106150.0,106090.0,1.4978637]
[1734362678827,0.0942907,106140.0,106100.0,0.29023295]
[1734362679048,0.0942907,106140.0,106110.0,0.0821]
[1734362679260,0.0942907,106140.0,106110.0,0.70331]
[1734362679916,0.05,106160.0,106120.0,0.00094225]
[1734362680142,0.0942907,106150.0,106120.0,0.47210225]
[1734362680346,0.1,106170.0,106130.0,0.15]
[1734362680555,0.1,106170.0,106130.0,0.62206211]
[1734362680556,0.0942907,106160.0,106130.0,0.62206211]
[1734362680782,0.0942907,106160.0,106130.0,0.62112]
[1734362681228,0.0942907,106160.0,106150.0,0.15]
[1734362681452,0.0125,106180.0,106150.0,0.62103]
[1734362681453,0.0625,106180.0,106150.0,0.62103]
[1734362681693,0.0942907,106170.0,106150.0,0.62091036]
[1734362682354,0.0125,106180.0,106150.0,0.36615358]
[1734362682598,0.0125,106180.0,106160.0,0.0009419]
[1734362682820,0.0125,106180.0,106150.0,0.46044428]
[1734362683027,0.0125,106180.0,106160.0,0.57603]
[1734362683663,0.1067907,106180.0,106160.0,0.57603]
[1734362684526,0.1067907,106180.0,106170.0,0.17613914]
[1734362686426,0.0125,106180.0,106170.0,0.30253914]
[1734362686641,0.0125,106180.0,106170.0,0.87852914]
[1734362687102,0.1067907,106180.0,106170.0,0.80699]
[1734362689582,0.1067907,106180.0,106170.0,0.72599]
[1734362689799,0.1567907,106180.0,106170.0,0.72599]
[1734362690016,0.2067907,106180.0,106170.0,0.57599]
[1734362690223,0.1567907,106180.0,106170.0,0.57599]
[1734362691270,0.1797907,106180.0,106170.0,0.57599]
[1734362691487,0.2297907,106180.0,106170.0,0.72599]
[1734362691687,0.1797907,106180.0,106170.0,0.72599]
[1734362693711,0.2067907,106180.0,106170.0,0.72599]
[1734362694120,0.15046977,106180.0,106170.0,0.57599]
[1734362694330,0.15050977,106180.0,106170.0,0.57599]
[1734362694537,0.1298307,106180.0,106170.0,0.57599]
[1734362694942,0.1068307,106180.0,106170.0,0.57599]
[1734362695145,0.1568307,106180.0,106170.0,0.57599]
[1734362695368,0.1569172,106180.0,106170.0,0.57599]
[1734362695569,0.1569172,106180.0,106170.0,0.72599]
[1734362696388,0.17260892,106180.0,106170.0,0.72599]
[1734362696593,0.1569172,106180.0,106170.0,0.72599]
[1734362697901,0.1799172,106180.0,106170.0,0.72599]
[1734362698110,0.1299172,106180.0,106170.0,0.57599]
[1734362698335,0.1299172,106180.0,106170.0,0.43941228]
[1734362698535,0.2311572,106180.0,106170.0,0.43941228]
[1734362698772,0.27612071,106180.0,106170.0,0.43941228]
[1734362699005,0.023,106170.0,106150.0,0.00016694]
[1734362699233,0.1172907,106160.0,106150.0,0.00016694]
[1734362700316,0.1672907,106160.0,106150.0,0.00016694]
[1734362700578,0.1172907,106160.0,106150.0,0.00016694]
[1734362701880,0.1672907,106160.0,106150.0,0.00016694]
[1734362702087,0.1172907,106160.0,106150.0,0.00016694]
[1734362702303,0.1942907,106160.0,106150.0,0.00016694]
[1734362703190,0.1442907,106160.0,106150.0,0.00016694]
[1734362703617,0.1172907,106160.0,106150.0,0.00016694]
[1734362706214,0.1173307,106160.0,106150.0,0.00016694]
[1734362707077,0.1173307,106160.0,106150.0,0.01016694]
[1734362707287,0.1173307,106160.0,106150.0,0.01033974]
[1734362707479,0.1673307,106160.0,106150.0,0.01033974]
[1734362707903,0.2173307,106160.0,106150.0,0.01033974]
[1734362708143,0.1673307,106160.0,106150.0,0.01033974]
[1734362708474,0.0943307,106160.0,106150.0,0.01033974]
[1734362708736,0.1443307,106160.0,106150.0,0.01033974]
[1734362709215,0.1943307,106160.0,106150.0,0.01033974]
[1734362709440,0.2173307,106160.0,106150.0,0.01033974]
[1734362709658,0.1673307,106160.0,106150.0,0.01033974]
[1734362710306,0.1173307,106160.0,106150.0,0.01033974]
[1734362710525,0.1673307,106160.0,106150.0,0.01033974]
[1734362710773,0.2173307,106160.0,106150.0,0.01033974]
[1734362711197,0.1798307,106160.0,106150.0,0.01033974]
[1734362712337,0.1068307,106160.0,106150.0,0.01033974]
[1734362712632,0.01254,106160.0,106150.0,0.08823974]
[1734362712858,0.01254,106160.0,106150.0,0.30310614]
[1734362713071,4e-05,106170.0,106160.0,0.2279]
[1734362713495,4e-05,106170.0,106160.0,0.2439664]
[1734362715007,0.0125865,106180.0,106170.0,0.1334332]
[1734362715229,0.0125865,106180.0,106170.0,0.29240803]
[1734362715448,0.0125865,106180.0,106170.0,0.3857571]
[1734362715667,0.00104,106190.0,106180.0,0.2294]
[1734362716365,0.00104,106190.0,106180.0,0.275]
[1734362716578,0.00104,106190.0,106180.0,0.3692907]
[1734362716789,0.00104,106190.0,106180.0,0.275]
[1734362718086,0.00104,106190.0,106180.0,0.3692907]
[1734362718317,0.0232751,106210.0,106190.0,0.0808]
[1734362718553,0.1175658,106210.0,106190.0,0.0808]
[1734362719186,0.0942907,106200.0,106190.0,0.0808]
[1734362719406,0.1442907,106200.0,106180.0,0.06601333]
[1734362720500,0.1942907,106200.0,106170.0,0.0811]
[1734362720723,0.0942907,106200.0,106170.0,0.08126694]
[1734362720939,0.0232751,106210.0,106180.0,0.0485]
[1734362721161,0.1175658,106210.0,106190.0,0.0818]
[1734362721813,0.1175658,106210.0,106190.0,0.2318]
[1734362722264,0.0232751,106210.0,106190.0,0.2318]
[1734362722944,0.0232751,106210.0,106190.0,0.25088398]
[1734362723360,0.0232751,106210.0,106190.0,4.25088398]
[1734362724668,0.1175658,106210.0,106190.0,4.25088398]
[1734362724880,0.1175658,106210.0,106190.0,4.2318]
[1734362725341,0.1175658,106210.0,106190.0,4.2285]
[1734362725796,0.0942907,106200.0,106190.0,4.0785]
[1734362726234,0.0942907,106200.0,106190.0,4.0]
[1734362726906,0.1442907,106200.0,106190.0,4.0]
[1734362728390,0.13514728,106200.0,106190.0,4.0]
[1734362728641,0.15814728,106200.0,106190.0,4.0]
[1734362729567,0.1363907,106200.0,106190.0,4.0]
[1734362730601,0.57863875,106200.0,106190.0,1.25500962]
[1734362730813,0.57863875,106200.0,106160.0,0.0001728]
[1734362730814,0.09904,106190.0,106160.0,0.0001728]
[1734362731036,0.0942907,106170.0,106160.0,0.0001728]
[1734362731689,0.05,106150.0,106120.0,0.04437383]
[1734362731900,0.0942907,106140.0,106120.0,0.04437383]
[1734362732787,0.05,106170.0,106130.0,0.07684225]
[1734362733004,0.05,106170.0,106130.0,0.23802161]
[1734362733005,0.0942907,106160.0,106130.0,0.23802161]
[1734362733212,0.1442907,106150.0,106130.0,0.2259]
[1734362733851,0.1942907,106150.0,106130.0,0.15]
[1734362734090,0.1442907,106140.0,106120.0,0.19437383]
[1734362734311,0.1442907,106140.0,106120.0,0.22165121]
[1734362734523,0.1442907,106140.0,106120.0,0.24779035]
[1734362734733,0.1442907,106130.0,106120.0,0.07051297]
[1734362735797,0.1442907,106130.0,106120.0,0.04437383]
[1734362736433,0.1442907,106130.0,106120.0,0.19437383]
[1734362736434,0.0942907,106130.0,106120.0,0.19437383]
[1734362736678,0.0942907,106130.0,106120.0,0.22165121]
[1734362737537,0.0942907,106130.0,106120.0,0.19437383]
[1734362740024,0.10016669,106150.0,106120.0,0.19437383]
[1734362740025,0.00016669,106150.0,106120.0,0.19437383]
[1734362740243,0.0942907,106140.0,106120.0,0.19437383]
[1734362740936,0.0942907,106140.0,106120.0,0.19531608]
[1734362741154,0.0942907,106140.0,106120.0,0.19437383]
[1734362741601,0.1442907,106140.0,106110.0,0.0784]
[1734362742041,0.0942907,106140.0,106110.0,0.0784]
[1734362742254,0.0942907,106140.0,106120.0,0.0489]
[1734362742952,0.0942907,106140.0,106120.0,0.1989]
[1734362743174,0.0942907,106140.0,106120.0,0.19984217]
[1734362743398,0.0942907,106140.0,106130.0,0.2325]
[1734362743615,0.0942907,106140.0,106120.0,0.01344674]
[1734362743826,0.0942907,106140.0,106110.0,0.00111517]
[1734362744692,0.00094217,106130.0,106110.0,0.000173]
[1734362744906,0.0942907,106130.0,106110.0,0.000173]
[1734362745545,0.0942907,106130.0,106100.0,0.18536412]
[1734362745760,0.0942907,106130.0,106100.0,0.1844219]
[1734362745991,0.0942907,106130.0,106100.0,0.21212348]
[1734362746208,0.0942907,106130.0,106100.0,0.21118116]
[1734362746638,0.0942907,106130.0,106110.0,0.15]
[1734362748835,0.09523287,106120.0,106100.0,0.18558116]
[1734362749805,0.00110886,106150.0,106110.0,0.00094244]
[1734362750019,0.0942907,106150.0,106120.0,0.08879423]
[1734362750243,0.18682877,106180.0,106130.0,0.21153632]
[1734362750244,0.13712877,106180.0,106130.0,0.21153632]
[1734362750462,0.0942907,106170.0,106130.0,0.21059423]
[1734362750679,0.0942907,106170.0,106120.0,0.19386684]
[1734362750919,0.0942907,106170.0,106130.0,0.1172907]
[1734362751170,8.64e-05,106200.0,106130.0,0.75255621]
[1734362751402,0.0943771,106200.0,106150.0,0.023]
[1734362751618,8.64e-05,106200.0,106170.0,0.023]
[1734362751827,8.64e-05,106200.0,106180.0,0.00094158]
[1734362752259,8.64e-05,106200.0,106180.0,0.09712567]
[1734362752476,8.64e-05,106200.0,106180.0,0.10913824]
[1734362752698,8.64e-05,106200.0,106190.0,0.15]
[1734362753129,0.00025325,106200.0,106190.0,0.62085]
[1734362755517,0.09454395,106200.0,106190.0,0.62085]
[1734362755728,0.09554395,106200.0,106190.0,0.47085]
[1734362757299,0.14554395,106200.0,106190.0,0.47085]
[1734362757511,0.09554395,106200.0,106190.0,0.47085]
[1734362758590,0.09554395,106200.0,106190.0,0.62085]
[1734362758805,0.09554395,106200.0,106190.0,0.44397447]
[1734362759017,0.14554395,106200.0,106190.0,0.44397447]
[1734362759873,0.09554395,106200.0,106190.0,0.48837192]
[1734362761955,0.14554395,106200.0,106190.0,0.44397447]
[1734362762170,0.09554395,106200.0,106190.0,0.29397447]
[1734362762403,0.00125325,106200.0,106190.0,0.29397447]
[1734362763254,0.09554395,106200.0,106190.0,0.44397447]
[1734362764323,0.00125325,106200.0,106190.0,0.44397447]
[1734362764527,0.00125325,106200.0,106190.0,0.49608192]
[1734362765153,0.0232751,106210.0,106200.0,0.15]
[1734362765363,0.11812175,106210.0,106200.0,0.79768]
[1734362769822,0.11812175,106210.0,106200.0,0.64768]
[1734362770556,0.16812175,106210.0,106200.0,0.64768]
[1734362770812,0.11812175,106210.0,106200.0,0.64768]
[1734362771052,0.11812175,106210.0,106200.0,0.86246528]
[1734362771774,0.11812175,106210.0,106200.0,0.79768]
[1734362774865,0.11816175,106210.0,106200.0,0.79768]
[1734362777135,0.11816175,106210.0,106200.0,0.7484641]
[1734362781652,0.02387105,106210.0,106200.0,0.7484641]
[1734362781893,0.02387105,106210.0,106200.0,1.08073743]
[1734362782131,0.0021865,106220.0,106200.0,1.08253504]
[1734362782369,0.0021865,106220.0,106210.0,0.35352715]
[1734362782610,0.0021865,106220.0,106210.0,0.92856]
[1734362782859,0.0021865,106220.0,106210.0,0.93215522]
[1734362783196,0.0021865,106220.0,106210.0,1.02633048]
[1734362787571,0.0021865,106220.0,106210.0,1.04340194]
[1734362787994,0.0021865,106220.0,106210.0,0.82713331]
[1734362788620,0.0021865,106220.0,106210.0,0.82765651]
[1734362789663,0.0021865,106220.0,106210.0,0.94494721]
[1734362789882,0.0021865,106220.0,106210.0,0.97765651]
[1734362790095,0.0021865,106220.0,106210.0,0.96222514]
[1734362790310,0.0964772,106220.0,106210.0,0.86804988]
[1734362790528,0.0964772,106220.0,106210.0,0.71393146]
[1734362790948,0.0965172,106220.0,106210.0,0.71393146]
[1734362792233,0.0965172,106220.0,106210.0,0.86393146]
[1734362794938,0.0965172,106220.0,106210.0,0.87855832]
[1734362795174,0.0965172,106220.0,106210.0,0.97273358]
[1734362795889,0.0022265,106220.0,106210.0,0.97273358]
[1734362796133,0.0022265,106220.0,106210.0,1.05103358]
[1734362796619,0.0022265,106220.0,106210.0,1.16832428]
[1734362796854,0.0022265,106220.0,106210.0,1.05103358]
[1734362797505,0.0022265,106220.0,106210.0,1.13305066]
[1734362797720,0.0022265,106220.0,106210.0,1.05103358]
[1734362797931,0.0022265,106220.0,106210.0,1.25607628]
[1734362798357,0.0022265,106220.0,106210.0,1.13305066]
[1734362799466,0.0022265,106220.0,106210.0,1.13310341]
[1734362799683,0.0022265,106220.0,106210.0,1.05103358]
[1734362799925,0.0022265,106220.0,106210.0,1.13310341]
[1734362801003,0.0022265,106220.0,106210.0,1.13327621]
[1734362801455,0.0022265,106220.0,106210.0,1.25638096]
[1734362802331,0.0022265,106220.0,106210.0,1.42052063]
[1734362802748,0.0022265,106220.0,106210.0,1.25638096]
[1734362803173,0.0022265,106220.0,106210.0,1.13327621]
[1734362803811,0.0022265,106220.0,106210.0,1.25638096]
[1734362804254,0.0022265,106220.0,106210.0,1.13327621]
[1734362804672,0.0015965,106220.0,106210.0,1.15952357]
[1734362804877,0.0015965,106220.0,106210.0,1.08122357]
[1734362805138,0.0015965,106220.0,106210.0,0.97290638]
[1734362805337,0.0015965,106220.0,106210.0,1.05497621]
[1734362805554,0.0015965,106220.0,106210.0,1.17808096]
[1734362805776,0.0015965,106220.0,106210.0,1.1826221]
[1734362805990,0.002,106230.0,106210.0,2.35421953]
[1734362806200,0.002,106230.0,106220.0,0.66440759]
[1734362806475,0.002,106230.0,106220.0,0.59369493]
[1734362806691,0.002,106230.0,106220.0,1.29050493]
[1734362806918,0.002,106230.0,106220.0,1.45445168]
[1734362807127,0.002,106230.0,106220.0,1.58641868]
[1734362807336,0.002,106230.0,106220.0,1.45445168]
[1734362807544,0.002,106230.0,106220.0,1.91651468]
[1734362807752,0.06276745,106240.0,106220.0,1.83454131]
[1734362807957,0.06276745,106240.0,106230.0,0.08286992]
[1734362808167,0.06276745,106240.0,106230.0,1.02608575]
[1734362808374,0.06276745,106240.0,106230.0,1.05016955]
[1734362808591,0.06276745,106240.0,106230.0,1.47012031]
[1734362808800,0.06276745,106240.0,106230.0,1.88007331]
[1734362809009,0.06276745,106240.0,106230.0,1.77611431]
[1734362809222,0.06276745,106240.0,106230.0,1.42012031]
[1734362809432,0.06276745,106240.0,106230.0,1.58406706]
[1734362809651,0.06276745,106240.0,106230.0,1.42012031]
[1734362809859,0.06280745,106240.0,106230.0,1.7073129]
[1734362810067,0.06280745,106240.0,106230.0,1.58405393]
[1734362810500,0.06280745,106240.0,106230.0,3.68211431]
[1734362810708,0.06280745,106240.0,106230.0,1.7073129]
[1734362810917,0.06280745,106240.0,106230.0,1.60110399]
[1734362812212,0.06280745,106240.0,106230.0,1.43715724]
[1734362813302,0.06280745,106240.0,106230.0,1.41440284]
[1734362813526,0.06280745,106240.0,106230.0,1.42199018]
[1734362814255,0.06280745,106240.0,106230.0,1.30015834]
[1734362814468,0.06280745,106240.0,106230.0,1.17719828]
[1734362815305,0.06280745,106240.0,106230.0,1.09528742]
[1734362815719,0.06280745,106240.0,106230.0,1.17719828]
[1734362815927,0.06280745,106240.0,106230.0,1.09528742]
[1734362816320,0.06280745,106240.0,106230.0,1.17719828]
[1734362817102,0.06280745,106240.0,106230.0,1.17730351]
[1734362817726,0.06280745,106240.0,106230.0,1.04760351]
[1734362818143,0.06280745,106240.0,106230.0,1.17062765]
[1734362818547,0.06280745,106240.0,106230.0,1.04001617]
[1734362819184,0.06280745,106240.0,106230.0,1.16304031]
[1734362820223,0.06280745,106240.0,106230.0,1.32707249]
[1734362820639,0.06280745,106240.0,106230.0,1.04001617]
[1734362820850,0.23619815,106240.0,106230.0,0.81815433]
[1734362821076,0.23619815,106240.0,106230.0,0.73610273]
[1734362821276,0.23619815,106240.0,106230.0,0.74610273]
[1734362822127,0.23619815,106240.0,106230.0,0.72904791]
[1734362822548,0.15709815,106240.0,106230.0,0.72904791]
[1734362822759,0.15709815,106240.0,106230.0,0.80196998]
[1734362823414,0.06280745,106240.0,106230.0,0.95196998]
[1734362824040,0.06280745,106240.0,106230.0,0.79788022]
[1734362825782,0.06280745,106240.0,106230.0,0.79805302]
[1734362827166,0.06280745,106240.0,106230.0,0.8802227]
[1734362828141,0.15709815,106240.0,106230.0,0.72513095]
[1734362829621,0.15709815,106240.0,106230.0,0.70285304]
[1734362835536,0.15709815,106240.0,106230.0,0.80285304]
[1734362841098,0.15709815,106240.0,106230.0,0.81721348]
[1734362841303,0.06280745,106240.0,106230.0,0.89957078]
[1734362841518,0.06280745,106240.0,106230.0,0.99374604]
[1734362841725,0.06280745,106240.0,106230.0,1.117282]
[1734362842160,0.15709815,106240.0,106230.0,0.89957078]
[1734362842369,0.15709815,106240.0,106230.0,0.88521034]
[1734362842598,0.15709815,106240.0,106230.0,0.80285304]
[1734362843926,0.28479815,106240.0,106230.0,0.65285304]
[1734362844429,0.23723815,106240.0,106230.0,0.65285304]
[1734362844769,0.15717815,106240.0,106230.0,0.71815562]
[1734362845204,0.15721815,106240.0,106230.0,0.86815562]
[1734362845686,0.15725815,106240.0,106230.0,0.86815562]
[1734362846177,0.15729815,106240.0,106230.0,0.86815562]
[1734362848023,0.15729815,106240.0,106230.0,0.80285304]
[1734362849964,0.23949815,106240.0,106230.0,0.80285304]
[1734362850505,0.33949815,106240.0,106230.0,0.80285304]
[1734362851565,0.23949815,106240.0,106230.0,0.80285304]
[1734362851843,0.28949815,106240.0,106230.0,0.80285304]
[1734362852338,0.23949815,106240.0,106230.0,0.80285304]
[1734362855540,0.28949815,106240.0,106230.0,0.80285304]
[1734362855789,0.28949815,106240.0,106230.0,0.79285304]
[1734362855790,0.33949815,106240.0,106230.0,0.79285304]
[1734362860093,0.28949815,106240.0,106230.0,0.79285304]
[1734362860293,0.33949815,106240.0,106230.0,0.79285304]
[1734362860567,0.23949815,106240.0,106230.0,0.79285304]
[1734362860850,0.23949815,106240.0,106230.0,0.87215562]
[1734362861068,0.15729815,106240.0,106230.0,0.79285304]
[1734362862371,0.20729815,106240.0,106230.0,0.79285304]
[1734362862847,0.15729815,106240.0,106230.0,0.79285304]
[1734362863076,0.20729815,106240.0,106230.0,0.79285304]
[1734362863523,0.15729815,106240.0,106230.0,0.79285304]
[1734362867873,0.15729815,106240.0,106230.0,0.64285304]
[1734362867874,0.28519815,106240.0,106230.0,0.64285304]
[1734362868122,0.15729815,106240.0,106230.0,0.43513624]
[1734362869433,0.15729815,106240.0,106230.0,0.58513624]
[1734362871880,0.20729815,106240.0,106230.0,0.58513624]
[1734362872956,0.28859815,106240.0,106230.0,0.43513624]
[1734362873175,0.23859815,106240.0,106230.0,0.43513624]
[1734362873879,0.28859815,106240.0,106230.0,0.43513624]
[1734362874113,0.15729815,106240.0,106230.0,0.47866714]
[1734362874321,0.25729815,106240.0,106230.0,0.58513624]
[1734362874764,0.20729815,106240.0,106230.0,0.58513624]
[1734362876954,0.25729815,106240.0,106230.0,0.58513624]
[1734362879057,0.20729815,106240.0,106230.0,0.58513624]
[1734362879949,0.25729815,106240.0,106230.0,0.58513624]
[1734362880167,0.18029815,106240.0,106230.0,0.58513624]
[1734362880442,0.26460594,106240.0,106230.0,0.2501728]
[1734362880658,0.55968321,106240.0,106230.0,0.2501728]
[1734362881111,0.46716763,106240.0,106230.0,0.2501728]
[1734362881317,0.84671172,106240.0,106230.0,0.2501728]
[1734362881525,0.63588544,106240.0,106230.0,0.2501728]
[1734362881941,0.46722442,106240.0,106230.0,0.2501728]
[1734362882155,0.61194442,106240.0,106230.0,0.1001728]
[1734362882373,1.00894722,106240.0,106230.0,0.1001728]
[1734362882586,0.20272,106230.0,106220.0,0.0001728]
[1734362882796,0.20272,106230.0,106160.0,0.10216088]
[1734362882797,0.05,106200.0,106160.0,0.10216088]
[1734362883007,0.0942907,106190.0,106160.0,0.10216088]
[1734362883241,0.0942907,106190.0,106160.0,0.14954595]
[1734362883465,0.0942907,106190.0,106160.0,0.14895275]
[1734362883684,0.0942907,106190.0,106160.0,0.06635501]
[1734362883685,0.0942907,106180.0,106160.0,0.06635501]
[1734362883909,0.0942907,106180.0,106150.0,0.08259774]
[1734362883910,0.0942907,106170.0,106150.0,0.09682896]
[1734362884126,0.0942907,106170.0,106140.0,0.10156768]
[1734362884344,0.0942907,106170.0,106150.0,0.00016685]
[1734362884557,0.0942907,106170.0,106160.0,0.02459412]
[1734362884777,0.0942907,106170.0,106160.0,0.01199852]
[1734362884989,0.0942907,106170.0,106150.0,0.00016685]
[1734362885198,0.0942907,106170.0,106160.0,0.01199852]
[1734362885411,0.0942907,106170.0,106160.0,0.03672494]
[1734362885660,0.0942907,106170.0,106160.0,0.04240531]
[1734362885868,0.0942907,106170.0,106160.0,0.31732494]
[1734362886088,0.0942907,106170.0,106160.0,0.29259852]
[1734362886298,0.0942907,106170.0,106160.0,0.29033304]
[1734362887091,0.0942907,106170.0,106160.0,0.24203304]
[1734362887143,0.0942907,106170.0,106160.0,0.00973304]
[1734362888649,0.1442907,106170.0,106160.0,0.00973304]
[1734362888851,0.1942907,106170.0,106160.0,0.00973304]
[1734362889064,0.1672907,106170.0,106160.0,0.00973304]
[1734362889269,0.1980907,106170.0,106160.0,0.00973304]
[1734362891360,0.1980907,106170.0,106150.0,0.00016685]
[1734362891557,0.1926907,106160.0,106150.0,0.00016685]
[1734362892829,0.2414907,106160.0,106150.0,0.00016685]
[1734362893245,0.0816,106150.0,106140.0,0.00973566]
[1734362893451,0.1988907,106150.0,106140.0,0.00990235]
[1734362893911,0.1988907,106150.0,106140.0,0.00016669]
[1734362894133,0.2476907,106150.0,106140.0,0.00016669]
[1734362894473,0.4572185,106150.0,106140.0,0.00016669]
[1734362894709,0.33150182,106150.0,106120.0,0.0001728]
[1734362894908,0.1172907,106130.0,106120.0,0.0001728]
[1734362895191,0.1989907,106130.0,106120.0,0.0001728]
[1734362896523,0.2455907,106130.0,106120.0,0.0001728]
[1734362897374,0.34743671,106130.0,106120.0,0.0001728]
[1734362897586,0.44635671,106130.0,106120.0,0.0001728]
[1734362897796,0.1062,106120.0,106110.0,0.0001728]
[1734362898019,0.2004907,106120.0,106110.0,0.0001728]
[1734362899306,0.30233671,106120.0,106110.0,0.0001728]
[1734362899521,0.35223671,106120.0,106110.0,0.0001728]
[1734362899737,0.35223671,106120.0,106100.0,0.0001272]
[1734362899738,0.0805,106110.0,106100.0,0.0001272]
[1734362899949,0.0805,106100.0,106090.0,0.0001728]
[1734362900132,0.1977907,106100.0,106090.0,0.0001728]